fUSD/lending_fUSD_20250302
["ID","MTS","AMOUNT","RATE_DAILY","PERIOD"]
[355126616,1740930646902,-395.42594871,0.00025205,2]
[355126617,1740930646912,-500.0,0.00025205,2]
[355126618,1740930646921,-547.7,0.00025205,2]
[355126619,1740930646931,-500.0,0.00025205,2]
[355126620,1740930646941,-500.0,0.00025205,2]
[355126621,1740930646950,-151.0,0.00025205,7]
[355126622,1740930646960,-500.0,0.00025205,2]
[355126623,1740930646971,-749.04,0.00025205,2]
[355126624,1740930646980,-500.0,0.00025205,2]
[355126625,1740930646991,-235.976958,0.00025205,7]
[355126626,1740930647000,-500.0,0.00025205,2]
[355126627,1740930647015,-903.02,0.00025205,2]
[355126628,1740930647024,-1399.85,0.00025205,2]
[355126629,1740930647035,-228.41,0.00025205,2]
[355126630,1740930647045,-516.09,0.00025205,2]
[355126632,1740930647054,-500.0,0.00025205,2]
[355126634,1740930647065,-500.0,0.00025205,2]
[355126636,1740930647075,-500.0,0.00025205,2]
[355126638,1740930647085,-500.0,0.00025205,2]
[355126639,1740930647095,-2204.41259329,0.00025205,2]
[355126641,1740930647107,-554.62740671,0.00025205,2]
[355126643,1740930647118,-908.68,0.00025205,2]
[355126645,1740930647127,-1649.39,0.00025205,2]
[355126647,1740930647137,-893.1,0.00025205,2]
[355126649,1740930647147,-1036.89,0.00025205,2]
[355126650,1740930647158,-777.5,0.00025205,2]
[355126652,1740930647168,-500.0,0.00025205,2]
[355126654,1740930647178,-514.00224893,0.00025205,2]
[355126656,1740930647188,-1965.61,0.00025205,2]
[355126658,1740930647199,-500.0,0.00025205,2]
[355126660,1740930647209,-500.0,0.00025205,2]
[355126662,1740930647219,-763.07,0.00025205,2]
[355126664,1740930647229,-500.0,0.00025205,2]
[355126666,1740930647238,-1418.55,0.00025205,2]
[355126668,1740930647249,-500.0,0.00025205,2]
[355126670,1740930647258,-500.0,0.00025205,2]
[355126672,1740930647271,-1316.21,0.00025205,2]
[355126674,1740930647280,-500.0,0.00025205,2]
[355126676,1740930647290,-500.0,0.00025205,2]
[355126678,1740930647299,-500.0,0.00025205,2]
[355126680,1740930647309,-452.5,0.00025205,2]
[355126682,1740930647319,-500.0,0.00025205,2]
[355126684,1740930647329,-1430.92,0.00025205,2]
[355126686,1740930647339,-500.0,0.00025205,2]
[355126687,1740930647348,-500.0,0.00025205,2]
[355126688,1740930647358,-500.0,0.00025205,2]
[355126689,1740930647368,-316.37255737,0.00025205,2]
[355126690,1740930647378,-378.94,0.00025205,2]
[355126691,1740930647388,-1355.18,0.00025205,2]
[355126692,1740930647397,-500.0,0.00025205,2]
[355126693,1740930647408,-500.0,0.00025205,2]
[355126694,1740930647418,-500.0,0.00025205,2]
[355126695,1740930647428,-500.0,0.00025205,2]
[355126696,1740930647437,-500.0,0.00025205,2]
[355126697,1740930647447,-500.0,0.00025205,2]
[355126699,1740930647457,-295.61,0.00025205,2]
[355126701,1740930647467,-500.0,0.00025205,2]
[355126703,1740930647476,-500.0,0.00025205,2]
[355126705,1740930647487,-1232.63,0.00025205,2]
[355126707,1740930647502,-500.0,0.00025205,2]
[355126709,1740930647515,-500.0,0.00025205,2]
[355126711,1740930647525,-528.98,0.00025205,2]
[355126713,1740930647537,-367.92,0.00025205,2]
[355126715,1740930647546,-406.98,0.00025205,2]
[355126716,1740930647557,-500.0,0.00025205,2]
[355126719,1740930647567,-500.0,0.00025205,2]
[355126720,1740930647577,-225.92,0.00025205,2]
[355126722,1740930647587,-500.0,0.00025205,2]
[355126724,1740930647598,-500.0,0.00025205,2]
[355126726,1740930647608,-500.0,0.00025205,2]
[355126728,1740930647617,-500.0,0.00025205,2]
[355126730,1740930647627,-301.49,0.00025205,2]
[355126732,1740930647637,-823.0,0.00025205,2]
[355126734,1740930647646,-831.23,0.00025205,2]
[355126736,1740930647656,-580.87,0.00025205,2]
[355126737,1740930647666,-242.96097947,0.00025205,2]
[355126739,1740930647675,-603.63,0.00025205,2]
[355126741,1740930647685,-500.0,0.00025205,2]
[355126743,1740930647695,-500.0,0.00025205,2]
[355126745,1740930647704,-500.0,0.00025205,2]
[355126747,1740930647714,-1637.62,0.00025205,2]
[355126749,1740930647723,-500.0,0.00025205,2]
[355126751,1740930647733,-500.0,0.00025205,2]
[355126753,1740930647743,-1394.88,0.00025205,2]
[355126755,1740930647752,-500.0,0.00025205,2]
[355126757,1740930647766,-301.53426638,0.00025205,2]
[355126759,1740930647776,-500.0,0.00025205,2]
[355126761,1740930647785,-4299.86,0.00025205,2]
[355126763,1740930647795,-2839.17,0.00025205,2]
[355126764,1740930647805,-500.0,0.00025205,2]
[355126766,1740930647815,-766.74,0.00025205,2]
[355126768,1740930647825,-749.36,0.00025205,2]
[355126770,1740930647835,-910.07,0.00025205,2]
[355126772,1740930647844,-500.08,0.00025205,2]
[355126774,1740930647854,-500.0,0.00025205,2]
[355126776,1740930647863,-500.0,0.00025205,2]
[355126777,1740930647873,-500.0,0.00025205,2]
[355126779,1740930647883,-500.0,0.00025205,2]
[355126781,1740930647893,-500.0,0.00025205,2]
[355126783,1740930647903,-500.0,0.00025205,2]
[355126785,1740930647912,-490.0,0.00025205,2]
[355126787,1740930647922,-500.0,0.00025205,2]
[355126789,1740930647932,-500.0,0.00025205,2]
[355126791,1740930647942,-584.97,0.00025205,2]
[355126793,1740930647952,-500.0,0.00025205,2]
[355126795,1740930647962,-1121.7,0.00025205,2]
[355126797,1740930647972,-278.34,0.00025205,2]
[355126799,1740930647981,-500.0,0.00025205,2]
[355126801,1740930647991,-516.14,0.00025205,2]
[355126803,1740930648001,-500.0,0.00025205,2]
[355126805,1740930648013,-1622.86,0.00025205,2]
[355126806,1740930648024,-1793.0,0.00025205,2]
[355126808,1740930648033,-276.19,0.00025205,2]
[355126810,1740930648043,-158.16,0.00025205,2]
[355126812,1740930648054,-1560.4,0.00025205,2]
[355126814,1740930648064,-500.0,0.00025205,2]
[355126816,1740930648075,-500.0,0.00025205,2]
[355126817,1740930648085,-500.0,0.00025205,2]
[355126818,1740930648095,-500.0,0.00025205,2]
[355126819,1740930648106,-618.43,0.00025205,2]
[355126821,1740930648117,-500.0,0.00025205,2]
[355126823,1740930648126,-500.0,0.00025205,2]
[355126825,1740930648137,-251.31321697,0.00025205,2]
[355126826,1740930648147,-500.0,0.00025205,2]
[355126828,1740930648157,-760.98,0.00025205,2]
[355126830,1740930648166,-500.0,0.00025205,2]
[355126832,1740930648177,-500.0,0.00025205,2]
[355126834,1740930648186,-889.47,0.00025205,2]
[355126836,1740930648196,-733.37,0.00025205,2]
[355126838,1740930648207,-500.0,0.00025205,2]
[355126840,1740930648217,-500.0,0.00025205,2]
[355126842,1740930648230,-546.83,0.00025205,2]
[355126844,1740930648240,-636.66,0.00025205,2]
[355126846,1740930648250,-500.0,0.00025205,2]
[355126848,1740930648261,-806.07,0.00025205,2]
[355126849,1740930648277,-2443.66,0.00025205,2]
[355126851,1740930648287,-207.66,0.00025205,2]
[355126853,1740930648297,-500.0,0.00025205,2]
[355126855,1740930648308,-619.60422646,0.00025205,2]
[355126857,1740930648317,-500.0,0.00025205,2]
[355126859,1740930648327,-490.79147937,0.00025205,2]
[355126861,1740930648337,-151.0,0.00025205,7]
[355126863,1740930648347,-500.0,0.00025205,2]
[355126865,1740930648357,-3279.81,0.00025205,2]
[355126867,1740930648367,-1526.61,0.00025205,2]
[355126869,1740930648378,-1347.2,0.00025205,2]
[355126871,1740930648394,-727.44,0.00025205,2]
[355126873,1740930648407,-500.0,0.00025205,2]
[355126875,1740930648418,-576.66,0.00025216,120]
[355126877,1740930648429,-193.0,0.000253,10]
[355126879,1740930648440,-1311.2,0.000253,2]
[355126881,1740930648451,-987.22,0.00025478,2]
[355126883,1740930648462,-169.793464,0.00025479,2]
[355126885,1740930648473,-194.188231,0.00025479,2]
[355126887,1740930648484,-525.63,0.00025479,2]
[355126889,1740930648496,-500.0,0.00025479,2]
[355126891,1740930648507,-500.0,0.00025479,2]
[355126893,1740930648525,-182.13,0.00025479,2]
[355126894,1740930648536,-268.8,0.00025479,2]
[355126896,1740930648546,-500.0,0.00025479,2]
[355126898,1740930648557,-500.0,0.00025479,2]
[355126900,1740930648568,-188.08,0.00025479,2]
[355126902,1740930648580,-500.0,0.00025479,2]
[355126904,1740930648592,-500.0,0.00025479,2]
[355126906,1740930648603,-500.0,0.00025479,2]
[355126908,1740930648615,-305.12,0.00025479,2]
[355126910,1740930648626,-156.54,0.00025479,2]
[355126912,1740930648636,-251.19,0.00025479,2]
[355126914,1740930648647,-500.0,0.00025479,2]
[355126916,1740930648657,-356.74,0.00025479,2]
[355126918,1740930648668,-500.0,0.00025479,2]
[355126920,1740930648678,-500.0,0.00025479,2]
[355126922,1740930648690,-244.24,0.00025479,2]
[355126924,1740930648700,-500.0,0.00025479,2]
[355126926,1740930648711,-500.0,0.00025479,2]
[355126928,1740930648721,-500.0,0.00025479,2]
[355126929,1740930648731,-500.0,0.00025479,2]
[355126931,1740930648742,-500.0,0.00025479,2]
[355126933,1740930648752,-1012.05,0.00025479,2]
[355126935,1740930648766,-500.0,0.00025479,2]
[355126937,1740930648777,-500.0,0.00025479,2]
[355126939,1740930648788,-500.0,0.00025479,2]
[355126941,1740930648799,-389.74,0.00025479,2]
[355126943,1740930648810,-500.0,0.00025479,2]
[355126945,1740930648821,-500.0,0.00025479,2]
[355126947,1740930648832,-330.19,0.00025479,2]
[355126949,1740930648843,-500.0,0.00025479,2]
[355126951,1740930648855,-500.0,0.00025479,2]
[355126953,1740930648866,-500.0,0.00025479,2]
[355126955,1740930648877,-500.0,0.00025479,2]
[355126957,1740930648888,-614.28,0.00025479,2]
[355126959,1740930648899,-151.0,0.00025479,7]
[355126961,1740930648915,-414.72,0.00025479,2]
[355126963,1740930648926,-500.0,0.00025479,2]
[355126965,1740930648938,-849.78,0.00025479,2]
[355126967,1740930648948,-345.95,0.00025479,2]
[355126969,1740930648959,-332.3,0.00025479,2]
[355126971,1740930648970,-245.19,0.00025479,2]
[355126973,1740930648982,-500.0,0.00025479,2]
[355126974,1740930648993,-500.0,0.00025479,2]
[355126975,1740930649004,-500.0,0.00025479,2]
[355126976,1740930649019,-500.0,0.00025479,2]
[355126977,1740930649030,-500.0,0.00025479,2]
[355126978,1740930649041,-500.0,0.00025479,2]
[355126979,1740930649051,-500.0,0.00025479,2]
[355126980,1740930649062,-500.0,0.00025479,2]
[355126981,1740930649072,-500.0,0.00025479,2]
[355126982,1740930649083,-500.0,0.00025479,2]
[355126983,1740930649093,-547.06,0.00025479,2]
[355126984,1740930649104,-500.0,0.00025479,2]
[355126985,1740930649114,-500.0,0.00025479,2]
[355126986,1740930649125,-500.0,0.00025479,2]
[355126988,1740930649136,-500.0,0.00025479,2]
[355126989,1740930649147,-500.0,0.00025479,2]
[355126991,1740930649158,-749.04,0.00025479,2]
[355126993,1740930649168,-300.81657233,0.00025479,2]
[355126994,1740930649178,-500.0,0.00025479,2]
[355126997,1740930649189,-903.02,0.00025479,2]
[355126999,1740930649199,-1399.85,0.00025479,2]
[355127001,1740930649210,-432.5,0.00025479,2]
[355127003,1740930649220,-508.2,0.00025479,2]
[355127005,1740930649230,-500.0,0.00025479,2]
[355127007,1740930649240,-500.0,0.00025479,2]
[355127009,1740930649250,-2759.04,0.00025479,2]
[355127011,1740930649260,-908.68,0.00025479,2]
[355127013,1740930649276,-1649.39,0.00025479,2]
[355127015,1740930649287,-893.1,0.00025479,2]
[355127017,1740930649297,-1036.89,0.00025479,2]
[355127019,1740930649307,-777.5,0.00025479,2]
[355127021,1740930649318,-547.04,0.00025479,2]
[355127023,1740930649329,-1965.61,0.00025479,2]
[355127025,1740930649340,-327.66,0.00025479,2]
[355127027,1740930649351,-500.0,0.00025479,2]
[355127029,1740930649360,-763.07,0.00025479,2]
[355127031,1740930649371,-214.11,0.00025479,2]
[355127033,1740930649383,-1418.55,0.00025479,2]
[355127035,1740930649392,-130.28165461,0.00025479,2]
[355127038,1740930649410,-369.71834539,0.00025479,2]
[355127040,1740930649421,-500.0,0.00025479,2]
[355127042,1740930649436,-1316.21,0.00025479,2]
[355127045,1740930649446,-339.0,0.00025479,2]
[355127047,1740930649455,-500.0,0.00025479,2]
[355127049,1740930649465,-500.0,0.00025479,2]
[355127051,1740930649475,-358.22665461,0.00025479,2]
[355127053,1740930649489,-141.77334539,0.00025479,2]
[355127055,1740930649500,-1430.92,0.00025479,2]
[355127057,1740930649511,-509.21,0.00025479,2]
[355127059,1740930649527,-500.0,0.00025479,2]
[355127061,1740930649537,-500.0,0.00025479,2]
[355127063,1740930649547,-1355.18,0.00025479,2]
[355127065,1740930649558,-239.15165461,0.00025479,2]
[355127068,1740930649572,-260.84834539,0.00025479,2]
[355127070,1740930649582,-500.0,0.00025479,2]
[355127072,1740930649595,-500.0,0.00025479,2]
[355127074,1740930649605,-500.0,0.00025479,2]
[355127076,1740930649615,-623.52686767,0.00025479,2]
[355127078,1740930649626,-500.0,0.00025479,2]
[355127080,1740930649636,-500.0,0.00025479,2]
[355127082,1740930649646,-500.0,0.00025479,2]
[355127084,1740930649656,-1232.63,0.00025479,2]
[355127086,1740930649667,-500.0,0.00025479,2]
[355127088,1740930649677,-500.0,0.00025479,2]
[355127090,1740930649688,-528.98,0.00025479,2]
[355127092,1740930649698,-158.28,0.00025479,2]
[355127094,1740930649709,-500.0,0.00025479,2]
[355127096,1740930649719,-500.0,0.00025479,2]
[355127098,1740930649729,-271.66,0.00025479,2]
[355127101,1740930649740,-292.98,0.00025479,2]
[355127103,1740930649751,-209.68,0.00025479,2]
[355127105,1740930649761,-823.0,0.00025479,2]
[355127107,1740930649773,-831.23,0.00025479,2]
[355127109,1740930649783,-580.87,0.00025479,2]
[355127111,1740930649792,-603.63,0.00025479,2]
[355127113,1740930649802,-310.55,0.00025479,2]
[355127115,1740930649813,-500.0,0.00025479,2]
[355127117,1740930649823,-500.0,0.00025479,2]
[355127119,1740930649834,-1637.62,0.00025479,2]
[355127121,1740930649844,-500.0,0.00025479,2]
[355127123,1740930649854,-346.37,0.00025479,2]
[355127125,1740930649865,-1394.88,0.00025479,2]
[355127127,1740930649875,-500.0,0.00025479,2]
[355127129,1740930649886,-158.36,0.00025479,2]
[355127131,1740930649896,-4299.86,0.00025479,2]
[355127133,1740930649905,-2839.17,0.00025479,2]
[355127135,1740930649915,-500.0,0.00025479,2]
[355127137,1740930649925,-766.74,0.00025479,2]
[355127139,1740930649934,-749.36,0.00025479,2]
[355127141,1740930649945,-910.07,0.00025479,2]
[355127143,1740930649955,-500.0,0.00025479,2]
[355127146,1740930649976,-500.0,0.00025479,2]
[355127148,1740930649989,-500.0,0.00025479,2]
[355127151,1740930650000,-500.0,0.00025479,2]
[355127153,1740930650011,-500.0,0.00025479,2]
[355127155,1740930650026,-500.0,0.00025479,2]
[355127157,1740930650037,-602.08,0.00025479,2]
[355127159,1740930650047,-648.3,0.00025479,2]
[355127161,1740930650059,-1121.7,0.00025479,2]
[355127163,1740930650069,-548.33,0.00025479,2]
[355127186,1740930650289,-516.14,0.00025479,2]
[355127188,1740930650299,-500.0,0.00025479,2]
[355127190,1740930650310,-1622.86,0.00025479,2]
[355127192,1740930650320,-1793.0,0.00025479,2]
[355127194,1740930650330,-1560.4,0.00025479,2]
[355127196,1740930650340,-500.0,0.00025479,2]
[355127198,1740930650350,-355.66091436,0.00025479,2]
[355127200,1740930650359,-500.0,0.00025479,2]
[355127202,1740930650369,-500.0,0.00025479,2]
[355127204,1740930650379,-618.43,0.00025479,2]
[355127206,1740930650390,-500.0,0.00025479,2]
[355127208,1740930650399,-500.0,0.00025479,2]
[355127211,1740930650414,-500.0,0.00025479,2]
[355127213,1740930650424,-760.98,0.00025479,2]
[355127215,1740930650434,-500.0,0.00025479,2]
[355127217,1740930650443,-500.0,0.00025479,2]
[355127219,1740930650453,-889.47,0.00025479,2]
[355127221,1740930650463,-733.37,0.00025479,2]
[355127223,1740930650473,-189.81,0.00025479,2]
[355127225,1740930650482,-500.0,0.00025479,2]
[355127227,1740930650495,-162.24206898,0.00025479,2]
[355127229,1740930650508,-337.75793102,0.00025479,2]
[355127230,1740930650524,-572.29204762,0.00025479,2]
[355127231,1740930650538,-233.77795238,0.00025479,2]
[355127232,1740930650548,-652.90313711,0.00025479,2]
[355127233,1740930650560,-1790.75686289,0.00025479,2]
[355127234,1740930650571,-500.0,0.00025479,2]
[355127235,1740930650583,-500.0,0.00025479,2]
[355127236,1740930650596,-500.0,0.00025479,2]
[355127237,1740930650607,-3279.81,0.00025479,2]
[355127238,1740930650618,-1526.61,0.00025479,2]
[355127239,1740930650627,-1347.2,0.00025479,2]
[355127240,1740930650637,-727.44,0.00025479,2]
[355127241,1740930650646,-500.0,0.00025479,2]
[355127242,1740930650657,-1652.86,0.00025487,2]
[355127243,1740930650667,-8714.36336184,0.00025555,4]
[355127244,1740930650676,-150.0,0.00025708,2]
[355127245,1740930650686,-815.779,0.00025708,2]
[355127246,1740930650696,-150.5,0.00025723,120]
[355127247,1740930650706,-9759.0,0.00025726,2]
[355127248,1740930650716,-150.5,0.00025733,120]
[355127249,1740930650725,-150.5,0.00025743,120]
[355127250,1740930650735,-169.793464,0.00025753,2]
[355127251,1740930650744,-194.188231,0.00025753,2]
[355127252,1740930650753,-153.185899,0.00025753,2]
[355127253,1740930650763,-151.0,0.00025753,7]
[355127254,1740930650775,-496.28,0.00025753,2]
[355127255,1740930650784,-500.0,0.00025753,2]
[355127256,1740930650794,-500.0,0.00025753,2]
[355127257,1740930650804,-500.0,0.00025753,2]
[355127258,1740930650814,-317.26,0.00025753,2]
[355127259,1740930650824,-277.58,0.00025753,2]
[355127260,1740930650833,-525.09,0.00025753,2]
[355127261,1740930650843,-212.46,0.00025753,2]
[355127262,1740930650853,-500.0,0.00025753,2]
[355127263,1740930650862,-500.0,0.00025753,2]
[355127264,1740930650874,-593.7,0.00025753,2]
[355127265,1740930650883,-500.0,0.00025753,2]
[355127266,1740930650893,-500.0,0.00025753,2]
[355127267,1740930650904,-520.02,0.00025753,2]
[355127268,1740930650914,-109.73621335,0.00025753,2]
[355127269,1740930650939,-0.07993348,0.00025753,2]
[355127271,1740930650958,-99.82385317,0.00025753,2]
[355127272,1740930650968,-1012.05,0.00025753,2]
[355127273,1740930650978,-500.0,0.00025753,2]
[355127274,1740930650988,-500.0,0.00025753,2]
[355127275,1740930650999,-500.0,0.00025753,2]
[355127276,1740930651009,-500.0,0.00025753,2]
[355127277,1740930651022,-500.0,0.00025753,2]
[355127278,1740930651032,-471.62,0.00025753,2]
[355127279,1740930651042,-500.0,0.00025753,2]
[355127281,1740930651052,-500.0,0.00025753,2]
[355127282,1740930651063,-500.0,0.00025753,2]
[355127283,1740930651074,-500.0,0.00025753,2]
[355127284,1740930651085,-849.78,0.00025753,2]
[355127285,1740930651096,-500.0,0.00025753,2]
[355127286,1740930651107,-261.72614683,0.00025753,2]
[355127287,1740930651120,-238.27385317,0.00025753,2]
[355127288,1740930651130,-413.51669872,0.00025753,2]
[355127289,1740930651143,-86.48330128,0.00025753,2]
[355127290,1740930651153,-597.51,0.00025753,2]
[355127291,1740930651163,-424.77212932,0.00025753,2]
[355127292,1740930651174,-97.40520623,0.00025753,2]
[355127293,1740930651188,-402.59479377,0.00025753,2]
[355127294,1740930651198,-500.0,0.00025753,2]
[355127295,1740930651209,-500.0,0.00025753,2]
[355127296,1740930651221,-500.0,0.00025753,2]
[355127297,1740930651231,-500.0,0.00025753,2]
[355127298,1740930651242,-500.0,0.00025753,2]
[355127299,1740930651252,-500.0,0.00025753,2]
[355127300,1740930651263,-500.0,0.00025753,2]
[355127301,1740930651278,-500.0,0.00025753,2]
[355127302,1740930651289,-151.0,0.00025753,7]
[355127303,1740930651299,-500.0,0.00025753,2]
[355127304,1740930651310,-749.04,0.00025753,2]
[355127305,1740930651321,-247.17,0.00025753,2]
[355127306,1740930651332,-903.02,0.00025753,2]
[355127307,1740930651342,-1399.85,0.00025753,2]
[355127308,1740930651353,-500.0,0.00025753,2]
[355127309,1740930651364,-312.99,0.00025753,2]
[355127310,1740930651374,-2759.04,0.00025753,2]
[355127311,1740930651384,-908.68,0.00025753,2]
[355127312,1740930651394,-1649.39,0.00025753,2]
[355127313,1740930651404,-893.1,0.00025753,2]
[355127314,1740930651416,-1036.89,0.00025753,2]
[355127315,1740930651426,-777.5,0.00025753,2]
[355127316,1740930651437,-1965.61,0.00025753,2]
[355127317,1740930651448,-500.0,0.00025753,2]
[355127318,1740930651459,-763.07,0.00025753,2]
[355127319,1740930651469,-1418.55,0.00025753,2]
[355127320,1740930651478,-338.83993151,0.00025753,2]
[355127321,1740930651495,-161.16006849,0.00025753,2]
[355127322,1740930651506,-500.0,0.00025753,2]
[355127323,1740930651520,-1316.21,0.00025753,2]
[355127324,1740930651531,-500.0,0.00025753,2]
[355127325,1740930651545,-68.13532289,0.00025753,2]
[355127326,1740930651686,-500.0,0.00024657,2]
[355127327,1740930651696,-423.2852045,0.00024931,2]
[355127328,1740930651707,-431.86467711,0.00025753,2]
[355127329,1740930651718,-532.83,0.00025753,2]
[355127330,1740930651728,-112.02014753,0.00025753,2]
[355127331,1740930651740,-1318.89985247,0.00025753,2]
[355127332,1740930651750,-567.47,0.00025753,2]
[355127333,1740930651759,-615.47,0.00025753,2]
[355127334,1740930651773,-156.36014753,0.00025753,2]
[355127335,1740930651833,-21.74610405,0.00025753,2]
[355127336,1740930651847,-393.713255,0.00025753,2]
[355127337,1740930651864,-783.36049342,0.00025753,2]
[355127338,1740930651874,-57.07075258,0.00025753,2]
[355127339,1740930651886,-442.92924742,0.00025753,2]
[355127340,1740930651896,-500.0,0.00025753,2]
[355127341,1740930651907,-500.0,0.00025753,2]
[355127342,1740930651916,-500.0,0.00025753,2]
[355127343,1740930651927,-500.0,0.00025753,2]
[355127344,1740930651937,-500.0,0.00025753,2]
[355127345,1740930651946,-500.0,0.00025753,2]
[355127346,1740930651956,-1232.63,0.00025753,2]
[355127347,1740930651965,-500.0,0.00025753,2]
[355127348,1740930651975,-500.0,0.00025753,2]
[355127349,1740930651984,-528.98,0.00025753,2]
[355127350,1740930651994,-500.0,0.00025753,2]
[355127351,1740930652005,-500.0,0.00025753,2]
[355127352,1740930652020,-823.0,0.00025753,2]
[355127353,1740930652031,-831.23,0.00025753,2]
[355127354,1740930652042,-580.87,0.00025753,2]
[355127355,1740930652053,-603.63,0.00025753,2]
[355127356,1740930652063,-437.84,0.00025753,2]
[355127357,1740930652073,-500.0,0.00025753,2]
[355127358,1740930652084,-1637.62,0.00025753,2]
[355127359,1740930652093,-253.65,0.00025753,2]
[355127360,1740930652103,-1394.88,0.00025753,2]
[355127361,1740930652113,-188.32583647,0.00025753,2]
[355127362,1740930652123,-4299.86,0.00025753,2]
[355127363,1740930652135,-2839.17,0.00025753,2]
[355127364,1740930652145,-500.0,0.00025753,2]
[355127365,1740930652154,-766.74,0.00025753,2]
[355127366,1740930652164,-749.36,0.00025753,2]
[355127367,1740930652174,-910.07,0.00025753,2]
[355127368,1740930652184,-500.0,0.00025753,2]
[355127369,1740930652194,-500.0,0.00025753,2]
[355127370,1740930652204,-500.0,0.00025753,2]
[355127371,1740930652214,-500.0,0.00025753,2]
[355127372,1740930652223,-500.0,0.00025753,2]
[355127373,1740930652234,-500.0,0.00025753,2]
[355127374,1740930652244,-1121.7,0.00025753,2]
[355127375,1740930652253,-516.14,0.00025753,2]
[355127376,1740930652263,-500.0,0.00025753,2]
[355127377,1740930652277,-1622.86,0.00025753,2]
[355127378,1740930652287,-1793.0,0.00025753,2]
[355127379,1740930652297,-1560.4,0.00025753,2]
[355127380,1740930652308,-500.0,0.00025753,2]
[355127381,1740930652317,-500.0,0.00025753,2]
[355127382,1740930652327,-500.0,0.00025753,2]
[355127383,1740930652336,-6000.0,0.00025753,2]
[355127384,1740930652346,-25.60356607,0.00025753,2]
[355127385,1740930652359,-343.125,0.00025753,2]
[355127386,1740930652371,-249.70143393,0.00025753,2]
[355127387,1740930652381,-48.00356607,0.00025753,2]
[355127388,1740930652393,-451.99643393,0.00025753,2]
[355127389,1740930652403,-500.0,0.00025753,2]
[355127390,1740930652414,-500.0,0.00025753,2]
[355127391,1740930652424,-572.40356607,0.00025753,2]
[355127392,1740930652436,-188.57643393,0.00025753,2]
[355127393,1740930652446,-500.0,0.00025753,2]
[355127394,1740930652457,-500.0,0.00025753,2]
[355127395,1740930652467,-889.47,0.00025753,2]
[355127396,1740930652477,-733.37,0.00025753,2]
[355127397,1740930652488,-500.0,0.00025753,2]
[355127398,1740930652503,-391.46,0.00025753,2]
[355127399,1740930652512,-806.07,0.00025753,2]
[355127400,1740930652526,-2443.66,0.00025753,2]
[355127401,1740930652538,-500.0,0.00025753,2]
[355127402,1740930652548,-334.59,0.00025753,2]
[355127403,1740930652558,-151.0,0.00025753,7]
[355127404,1740930652568,-637.18,0.00025753,2]
[355127405,1740930652578,-3279.81,0.00025753,2]
[355127406,1740930652588,-1526.61,0.00025753,2]
[355127407,1740930652599,-1347.2,0.00025753,2]
[355127408,1740930652608,-727.44,0.00025753,2]
[355127409,1740930652618,-500.0,0.00025753,2]
[355127410,1740930652628,-632.07,0.00025753,2]
[355127411,1740930652638,-3409.55,0.00025786,2]